fUSD/lending_fUSD_20260623
["ID","MTS","AMOUNT","RATE_DAILY","PERIOD"]
[426091171,1782144078000,-166.66,0.00012166,2]
[426091172,1782144094000,-267.55,0.00012171,2]
[426091173,1782144133000,-452.81493853,0.00012269,2]
[426091174,1782144149000,-159.79,0.0001214,2]
[426091175,1782144149000,-293.02493853,0.00012269,2]
[426091176,1782144181000,-584.22196578,0.00011,2]
[426091177,1782144184000,-584.22196578,0.00011,2]
[426091178,1782144202000,-500.0,0.00011,2]
[426091179,1782144219000,-500.0,0.00010999,2]
[426091180,1782144269000,-500.0,0.00010999,2]
[426091182,1782144286000,-500.0,0.00010999,2]
[426091184,1782144336000,-500.0,0.00010999,2]
[426091185,1782144352000,-500.0,0.00010999,2]
[426091186,1782144404000,-289.79120542,0.00010999,2]
[426091224,1782144631000,-7675.15,0.00012333,2]
[426091220,1782144631000,-1173.75181457,0.00012333,2]
[426091219,1782144631000,-4005.36731345,0.00012333,2]
[426091218,1782144631000,-150.99,0.00012333,2]
[426091210,1782144631000,-250.0,0.00012099,2]
[426091214,1782144631000,-166.66,0.00012203,2]
[426091213,1782144631000,-166.43,0.00012099,2]
[426091217,1782144631000,-166.67,0.00012333,2]
[426091216,1782144631000,-160.46,0.00012329,2]
[426091215,1782144631000,-1175.29012294,0.00012269,2]
[426091205,1782144631000,-166.66,0.00011255,2]
[426091211,1782144631000,-177.06477906,0.00012099,2]
[426091209,1782144631000,-159.27,0.00011974,2]
[426091207,1782144631000,-166.66,0.00011729,2]
[426091203,1782144631000,-160.0,0.00011002,2]
[426091222,1782144631000,-8271.56752815,0.00012333,2]
[426091204,1782144631000,-216.35787048,0.00011005,2]
[426091206,1782144631000,-166.66,0.00011492,2]
[426091202,1782144631000,-250.0,0.00010999,2]
[426091208,1782144631000,-166.66,0.00011966,2]
[426091201,1782144631000,-288.7644505,0.00010999,2]
[426091212,1782144631000,-322.93522094,0.00012099,2]
[426091227,1782144631000,-3757.59,0.00012333,2]
[426091221,1782144631000,-16378.12334383,0.00012333,2]
[426091228,1782144631000,-1220.72,0.00012333,2]
[426091254,1782144631000,-500.0,0.00012575,2]
[426091253,1782144631000,-500.0,0.00012575,2]
[426091225,1782144631000,-3045.74,0.00012333,2]
[426091252,1782144631000,-166.66,0.0001244,2]
[426091250,1782144631000,-14228.62,0.00012333,2]
[426091248,1782144631000,-2138.48,0.00012333,2]
[426091245,1782144631000,-299.99,0.00012333,2]
[426091256,1782144631000,-500.0,0.00012575,2]
[426091246,1782144631000,-9999.99,0.00012333,2]
[426091244,1782144631000,-420.86,0.00012333,2]
[426091243,1782144631000,-9999.99,0.00012333,2]
[426091255,1782144631000,-500.0,0.00012575,2]
[426091237,1782144631000,-7107.93318493,0.00012333,2]
[426091241,1782144631000,-499.99,0.00012333,2]
[426091226,1782144631000,-9999.99,0.00012333,2]
[426091223,1782144631000,-5808.02,0.00012333,2]
[426091231,1782144631000,-26610.79476626,0.00012333,2]
[426091230,1782144631000,-9816.51,0.00012333,2]
[426091233,1782144631000,-99441.42977636,0.00012333,2]
[426091239,1782144631000,-2892.05681507,0.00012333,2]
[426091235,1782144631000,-3885.28,0.00012333,2]
[426091234,1782144631000,-3178.99,0.00012333,2]
[426091232,1782144631000,-8890.17545738,0.00012333,2]
[426091285,1782144632000,-1556.77296582,0.00012782,2]
[426091262,1782144632000,-500.0,0.00012575,2]
[426091272,1782144632000,-500.0,0.00012575,2]
[426091273,1782144632000,-550.0,0.00012575,2]
[426091268,1782144632000,-500.0,0.00012575,2]
[426091266,1782144632000,-500.0,0.00012575,2]
[426091269,1782144632000,-500.0,0.00012575,2]
[426091264,1782144632000,-500.0,0.00012575,2]
[426091261,1782144632000,-500.0,0.00012575,2]
[426091271,1782144632000,-500.0,0.00012575,2]
[426091265,1782144632000,-500.0,0.00012575,2]
[426091263,1782144632000,-323.27107862,0.00012575,2]
[426091270,1782144632000,-500.0,0.00012575,2]
[426091260,1782144632000,-500.0,0.00012575,2]
[426091258,1782144632000,-500.0,0.00012575,2]
[426091257,1782144632000,-500.0,0.00012575,2]
[426091259,1782144632000,-500.0,0.00012575,2]
[426091275,1782144632000,-500.0,0.00012575,2]
[426091267,1782144632000,-500.0,0.00012575,2]
[426091286,1782144632000,-190.54766432,0.00012782,2]
[426091281,1782144632000,-390.51112497,0.00012575,2]
[426091278,1782144632000,-500.0,0.00012575,2]
[426091297,1782144632000,-1168.91636732,0.00012795,2]
[426091296,1782144632000,-324.2183978,0.00012795,2]
[426091298,1782144632000,-618.31401655,0.00012795,2]
[426091290,1782144632000,-2222.47975251,0.00012795,2]
[426091288,1782144632000,-525.39817668,0.00012785,2]
[426091295,1782144632000,-374.94758386,0.00012795,2]
[426091292,1782144632000,-195901.45827358,0.00012795,2]
[426091293,1782144632000,-1219.25735051,0.00012795,2]
[426091294,1782144632000,-4029.04697502,0.00012795,2]
[426091291,1782144632000,-6898.74086391,0.00012795,2]
[426091287,1782144632000,-516.10883944,0.00012782,2]
[426091284,1782144632000,-500.0,0.00012635,2]
[426091283,1782144632000,-1921.13,0.00012576,2]
[426091282,1782144632000,-276.02691848,0.00012575,2]
[426091274,1782144632000,-500.0,0.00012575,2]
[426091276,1782144632000,-500.0,0.00012575,2]
[426091279,1782144632000,-500.0,0.00012575,2]
[426091280,1782144632000,-500.0,0.00012575,2]
[426091277,1782144632000,-500.0,0.00012575,2]
[426091289,1782144632000,-150.0,0.00012794,2]
[426091308,1782144637000,-11.76222688,0.00012332,2]
[426091309,1782144637000,-256.45948477,0.00012332,2]
[426091310,1782144637000,-242.35557975,0.00012332,2]
[426091306,1782144637000,-500.0,0.00012332,2]
[426091307,1782144637000,-488.23777312,0.00012332,2]
[426091311,1782144637000,-1442.23764713,0.00012795,2]
[426091312,1782144637000,-2970.00001,0.00012795,2]
[426091338,1782144638000,-1000.0,0.00012994,2]
[426091337,1782144638000,-1000.0,0.00012994,2]
[426091334,1782144638000,-1000.0,0.00012994,2]
[426091335,1782144638000,-1000.0,0.00012994,2]
[426091336,1782144638000,-1000.0,0.00012994,2]
[426091340,1782144638000,-2000.0,0.00012995,2]
[426091341,1782144638000,-2222.47975246,0.00013029,2]
[426091342,1782144638000,-6898.74086383,0.00013029,2]
[426091344,1782144638000,-389.53952,0.00013094,2]
[426091339,1782144638000,-1000.0,0.00012994,2]
[426091353,1782144638000,-150.0,0.00013269,2]
[426091346,1782144638000,-513.63,0.00013119,2]
[426091345,1782144638000,-410.34,0.00013105,2]
[426091349,1782144638000,-1921.13,0.00013189,2]
[426091351,1782144638000,-2222.47975246,0.00013263,2]
[426091352,1782144638000,-6898.74086383,0.00013263,2]
[426091350,1782144638000,-278.82,0.0001326,2]
[426091343,1782144638000,-389.53952,0.00013094,2]
[426091333,1782144638000,-1000.0,0.00012994,2]
[426091320,1782144638000,-1500000.0,0.00012895,2]
[426091330,1782144638000,-1000.0,0.00012994,2]
[426091357,1782144638000,-150.0,0.00013369,2]
[426091313,1782144638000,-452.64197648,0.00012795,2]
[426091315,1782144638000,-2283729.58386473,0.00012795,2]
[426091314,1782144638000,-7769.37753702,0.00012795,2]
[426091316,1782144638000,-1921.13,0.00012882,2]
[426091318,1782144638000,-4185.7827,0.00012895,2]
[426091319,1782144638000,-2500.0,0.00012895,2]
[426091317,1782144638000,-525.39817668,0.00012885,2]
[426091332,1782144638000,-1000.0,0.00012994,2]
[426091323,1782144638000,-389.53951,0.0001296,2]
[426091322,1782144638000,-744.55644072,0.00012895,2]
[426091325,1782144638000,-389.53951,0.0001297,2]
[426091326,1782144638000,-159.27,0.00012972,2]
[426091327,1782144638000,-330.17,0.00012987,2]
[426091321,1782144638000,-5667.3437,0.00012895,2]
[426091328,1782144638000,-389.53952,0.0001299,2]
[426091329,1782144638000,-151.0,0.00012992,2]
[426091331,1782144638000,-1000.0,0.00012994,2]
[426091324,1782144638000,-389.53952,0.0001296,2]
[426091354,1782144638000,-204.136062,0.00013366,2]
[426091347,1782144638000,-327.53,0.0001314,2]
[426091356,1782144638000,-151.0,0.00013369,2]
[426091376,1782144638000,-6898.74086383,0.00013964,2]
[426091380,1782144638000,-2301.41994215,0.0001402,2]
[426091382,1782144638000,-6898.74086383,0.00014198,2]
[426091379,1782144638000,-1538.44381713,0.0001402,2]
[426091381,1782144638000,-2222.47975246,0.00014198,2]
[426091384,1782144638000,-6898.74086383,0.00014432,2]
[426091386,1782144638000,-250.0,0.00014534,2]
[426091385,1782144638000,-3113.8965,0.0001452,2]
[426091378,1782144638000,-250.0,0.00014,2]
[426091388,1782144638000,-6898.74086383,0.00014666,2]
[426091389,1782144638000,-2057.61301346,0.000149,3]
[426091390,1782144638000,-2222.47975246,0.000149,2]
[426091392,1782144638000,-516.10883942,0.000149,2]
[426091391,1782144638000,-6898.74086383,0.000149,2]
[426091395,1782144638000,-159.27,0.00014967,2]
[426091393,1782144638000,-157.46943484,0.00014939,2]
[426091397,1782144638000,-300.0,0.00014999,2]
[426091355,1782144638000,-530.66954117,0.00013369,2]
[426091387,1782144638000,-2222.47975246,0.00014666,2]
[426091377,1782144638000,-159.27,0.00013969,2]
[426091394,1782144638000,-190.54766432,0.0001496,2]
[426091371,1782144638000,-2222.47975246,0.00013731,2]
[426091383,1782144638000,-2222.47975246,0.00014432,2]
[426091360,1782144638000,-321.74,0.00013395,2]
[426091358,1782144638000,-152.0,0.00013369,2]
[426091361,1782144638000,-349.12,0.00013417,2]
[426091364,1782144638000,-2222.47975246,0.00013497,2]
[426091362,1782144638000,-150.0,0.00013469,2]
[426091366,1782144638000,-330.45466271,0.0001352,2]
[426091365,1782144638000,-6898.74086383,0.00013497,2]
[426091367,1782144638000,-872.0750832,0.0001352,2]
[426091359,1782144638000,-341.49,0.0001338,2]
[426091363,1782144638000,-1921.13,0.00013496,2]
[426091373,1782144638000,-516.10883942,0.00013841,2]
[426091370,1782144638000,-558.41,0.000137,2]
[426091368,1782144638000,-166.43,0.00013611,2]
[426091375,1782144638000,-2222.47975246,0.00013964,2]
[426091369,1782144638000,-200.0,0.00013699,2]
[426091374,1782144638000,-255.0,0.00013894,2]
[426091396,1782144638000,-525.39817668,0.0001499,2]
[426091372,1782144638000,-6898.74086383,0.00013731,2]
[426091419,1782144639000,-150.0,0.00016,2]
[426091427,1782144639000,-736.0,0.00016389,2]
[426091420,1782144639000,-151.28419525,0.00016,2]
[426091422,1782144639000,-211.14775444,0.000161,2]
[426091423,1782144639000,-9999.99,0.00016116,2]
[426091421,1782144639000,-211.14775444,0.00016,2]
[426091426,1782144639000,-31630.0,0.000163,2]
[426091428,1782144639000,-300.0,0.00016437,2]
[426091425,1782144639000,-750.0,0.00016165,7]
[426091429,1782144639000,-719.5,0.00016438,2]
[426091431,1782144639000,-766.0,0.00016438,2]
[426091432,1782144639000,-900.0,0.00016438,2]
[426091436,1782144639000,-1000.0,0.000165,2]
[426091418,1782144639000,-300.0,0.00016,2]
[426091435,1782144639000,-151.0,0.00016438,2]
[426091424,1782144639000,-2100.0,0.00016165,2]
[426091417,1782144639000,-159.27,0.00015965,2]
[426091407,1782144639000,-151.0,0.00015068,2]
[426091416,1782144639000,-252.0,0.0001589,2]
[426091433,1782144639000,-151.0,0.00016438,2]
[426091400,1782144639000,-300.0,0.00014999,2]
[426091398,1782144639000,-300.0,0.00014999,2]
[426091399,1782144639000,-672.63697964,0.00014999,2]
[426091402,1782144639000,-290.453896,0.00015,2]
[426091401,1782144639000,-1841695.61860622,0.00015,2]
[426091403,1782144639000,-6726053.93721073,0.00015,2]
[426091406,1782144639000,-900.0,0.00015068,2]
[426091404,1782144639000,-42306.68606844,0.00015,2]
[426091409,1782144639000,-151.0,0.00015068,2]
[426091408,1782144639000,-151.0,0.00015068,2]
[426091410,1782144639000,-151.0,0.00015068,2]
[426091405,1782144639000,-150.0,0.00015068,2]
[426091411,1782144639000,-433.0,0.00015084,2]
[426091413,1782144639000,-744.55644071,0.00015146,2]
[426091414,1782144639000,-2279.22811866,0.00015807,2]
[426091412,1782144639000,-166.43,0.00015124,2]
[426091415,1782144639000,-1468.72412664,0.00015861,2]
[426091434,1782144639000,-158.29196,0.00016438,2]
[426091430,1782144639000,-302.96,0.00016438,2]
[426091439,1782144639000,-500.0,0.00016696,2]
[426091472,1782144639000,-744.55644071,0.00017397,2]
[426091471,1782144639000,-5529.0,0.000173,5]
[426091475,1782144639000,-1838.8288593,0.000175,2]
[426091473,1782144639000,-1838.8288593,0.000174,2]
[426091474,1782144639000,-10237.75341204,0.000174,2]
[426091476,1782144639000,-10237.75341204,0.000175,2]
[426091479,1782144639000,-1252.0,0.00017797,2]
[426091469,1782144639000,-471.551253,0.0001726,2]
[426091477,1782144639000,-10237.75341204,0.000177,2]
[426091484,1782144639000,-300.0,0.00017999,2]
[426091481,1782144639000,-1243.46307045,0.0001789,2]
[426091478,1782144639000,-795.6531619,0.000177,2]
[426091482,1782144639000,-10237.75341204,0.000179,2]
[426091486,1782144639000,-341.4298358,0.00018,2]
[426091485,1782144639000,-1307.19185621,0.00018,2]
[426091437,1782144639000,-166.43,0.00016636,2]
[426091483,1782144639000,-159.27,0.00017961,2]
[426091468,1782144639000,-169.96,0.00017238,2]
[426091480,1782144639000,-1613.0535,0.00017808,2]
[426091467,1782144639000,-169.96,0.00017238,2]
[426091441,1782144639000,-202.4,0.00016712,2]
[426091470,1782144639000,-1555.5,0.0001726,2]
[426091440,1782144639000,-1500.0,0.00016712,2]
[426091443,1782144639000,-1838.8288593,0.000168,2]
[426091438,1782144639000,-2000.0,0.00016696,2]
[426091451,1782144639000,-5529.0,0.000168,3]
[426091446,1782144639000,-10237.75341204,0.000168,2]
[426091453,1782144639000,-1784.25,0.00016904,2]
[426091448,1782144639000,-558.41,0.000168,2]
[426091465,1782144639000,-1838.8288593,0.000172,2]
[426091464,1782144639000,-190.54766432,0.00017138,2]
[426091461,1782144639000,-10237.75341204,0.00017,2]
[426091458,1782144639000,-193.0,0.00016981,3]
[426091460,1782144639000,-1838.8288593,0.00017,2]
[426091463,1782144639000,-155.65,0.0001703,2]
[426091462,1782144639000,-1173.4454132,0.00017,2]
[426091466,1782144639000,-10237.75341204,0.000172,2]
[426091456,1782144639000,-159.27,0.00016963,2]
[426091525,1782144640000,-265616.47475379,0.000194,2]
[426091524,1782144640000,-181.85,0.00019355,7]
[426091521,1782144640000,-1307.19185621,0.000193,2]
[426091519,1782144640000,-151.0,0.00019178,2]
[426091514,1782144640000,-1734.62772924,0.00018904,2]
[426091517,1782144640000,-365.9214821,0.0001901,7]
[426091511,1782144640000,-341.4298358,0.000187,2]
[426091527,1782144640000,-1307.19185621,0.000195,2]
[426091515,1782144640000,-5254.35568084,0.00019,2]
[426091512,1782144640000,-558.41,0.000188,2]
[426091520,1782144640000,-151.0,0.00019178,2]
[426091534,1782144640000,-151.0,0.00019841,2]
[426091528,1782144640000,-429.70900624,0.00019505,2]
[426091523,1782144640000,-2129.0,0.00019332,2]
[426091526,1782144640000,-1798.80895522,0.00019452,2]
[426091530,1782144640000,-744.55644071,0.00019648,2]
[426091529,1782144640000,-500.0,0.00019505,2]
[426091531,1782144640000,-202.4,0.00019658,2]
[426091541,1782144640000,-752.4937536,0.0002,2]
[426091533,1782144640000,-151.0,0.00019841,2]
[426091532,1782144640000,-1307.19185621,0.000197,2]
[426091536,1782144640000,-164.29860884,0.00019862,2]
[426091516,1782144640000,-160.0,0.00019,2]
[426091522,1782144640000,-87745.31,0.00019317,2]
[426091518,1782144640000,-1307.19185621,0.000191,2]
[426091493,1782144640000,-1807.87330709,0.000181,2]
[426091508,1782144640000,-341.4298358,0.000185,2]
[426091537,1782144640000,-17710.44466581,0.0001995,15]
[426091488,1782144640000,-204.4,0.00018,2]
[426091487,1782144640000,-350.0,0.00018,2]
[426091492,1782144640000,-10237.75341204,0.000181,2]
[426091490,1782144640000,-1211.47984522,0.00018,2]
[426091491,1782144640000,-1553.87604182,0.00018,2]
[426091489,1782144640000,-111218.22954958,0.00018,2]
[426091495,1782144640000,-500.0,0.00018164,2]
[426091500,1782144640000,-1672.7364795,0.00018356,2]
[426091501,1782144640000,-1307.19185621,0.000184,2]
[426091502,1782144640000,-341.4298358,0.000184,2]
[426091494,1782144640000,-166.43,0.00018148,2]
[426091497,1782144640000,-341.4298358,0.000182,2]
[426091499,1782144640000,-204.4,0.000182,2]
[426091498,1782144640000,-10237.75341204,0.000182,2]
[426091496,1782144640000,-1307.19185621,0.000182,2]
[426091505,1782144640000,-719.5,0.0001841,2]
[426091503,1782144640000,-10237.75341204,0.000184,2]
[426091506,1782144640000,-155.65,0.00018436,2]
[426091507,1782144640000,-1307.19185621,0.000185,2]
[426091504,1782144640000,-204.4,0.000184,2]
[426091510,1782144640000,-1307.19185621,0.000187,2]
[426091509,1782144640000,-10237.75341204,0.000186,2]
[426091513,1782144640000,-1307.19185621,0.000189,2]
[426091538,1782144640000,-3024.77458829,0.00019999,2]
[426091576,1782144640000,-151.0,0.0002,2]
[426091540,1782144640000,-158.0,0.0002,2]
[426091569,1782144640000,-200.0,0.0002,2]
[426091571,1782144640000,-151.0,0.0002,2]
[426091591,1782144640000,-500.0,0.0002,2]
[426091573,1782144640000,-151.0,0.0002,2]
[426091570,1782144640000,-151.0,0.0002,2]
[426091572,1782144640000,-151.0,0.0002,2]
[426091575,1782144640000,-151.0,0.0002,2]
[426091577,1782144640000,-1865.36488656,0.0002,2]
[426091579,1782144640000,-500.0,0.0002,2]
[426091568,1782144640000,-151.0,0.0002,2]
[426091578,1782144640000,-151.0,0.0002,2]
[426091581,1782144640000,-151.0,0.0002,2]
[426091590,1782144640000,-151.0,0.0002,2]
[426091589,1782144640000,-151.0,0.0002,2]
[426091580,1782144640000,-151.0,0.0002,2]
[426091582,1782144640000,-500.0,0.0002,2]
[426091587,1782144640000,-151.0,0.0002,2]
[426091584,1782144640000,-151.0,0.0002,2]
[426091586,1782144640000,-151.0,0.0002,2]
[426091583,1782144640000,-151.0,0.0002,2]
[426091585,1782144640000,-500.0,0.0002,2]
[426091588,1782144640000,-500.0,0.0002,2]
[426091535,1782144640000,-155.65,0.00019841,2]
[426091567,1782144640000,-169.261806,0.0002,2]
[426091560,1782144640000,-190.70002079,0.0002,2]
[426091574,1782144640000,-151.0,0.0002,2]
[426091561,1782144640000,-190.70002079,0.0002,2]
[426091539,1782144640000,-1139.0,0.0002,2]
[426091563,1782144640000,-190.70002079,0.0002,2]
[426091542,1782144640000,-400.0,0.0002,2]
[426091547,1782144640000,-5301.80682412,0.0002,2]
[426091548,1782144640000,-1560.54698761,0.0002,2]
[426091545,1782144640000,-221.0,0.0002,2]
[426091543,1782144640000,-59404.0,0.0002,2]
[426091544,1782144640000,-839.0,0.0002,2]
[426091553,1782144640000,-981.26865284,0.0002,2]
[426091551,1782144640000,-938.0,0.0002,2]
[426091549,1782144640000,-179.5694719,0.0002,2]
[426091552,1782144640000,-226.421081,0.0002,2]
[426091550,1782144640000,-1971.0,0.0002,2]
[426091546,1782144640000,-156.0,0.0002,2]
[426091559,1782144640000,-183.81854945,0.0002,2]
[426091564,1782144640000,-190.70002079,0.0002,2]
[426091562,1782144640000,-190.70002079,0.0002,2]
[426091557,1782144640000,-313.33396714,0.0002,2]
[426091556,1782144640000,-163.94697071,0.0002,14]
[426091558,1782144640000,-811.52168439,0.0002,2]
[426091565,1782144640000,-501.0,0.0002,2]
[426091555,1782144640000,-154.0,0.0002,2]
[426091554,1782144640000,-512.0,0.0002,2]
[426091566,1782144640000,-1525.49,0.0002,2]
[426091633,1782144641000,-5330.92,0.00020629,2]
[426091623,1782144641000,-752.4937536,0.000202,2]
[426091624,1782144641000,-821.26435144,0.00020274,2]
[426091619,1782144641000,-204.0,0.0002,2]
[426091625,1782144641000,-719.5,0.00020381,2]
[426091618,1782144641000,-500.0,0.0002,2]
[426091629,1782144641000,-1934.38338736,0.00020548,2]
[426091632,1782144641000,-501.0,0.00020619,2]
[426091630,1782144641000,-752.4937536,0.000206,2]
[426091628,1782144641000,-200.0,0.00020548,2]
[426091631,1782144641000,-785.0,0.00020606,2]
[426091635,1782144641000,-500.0,0.00020672,2]
[426091645,1782144641000,-839.0,0.00021,2]
[426091637,1782144641000,-601.05380042,0.000207,2]
[426091634,1782144641000,-901.4,0.00020629,2]
[426091636,1782144641000,-558.41,0.000207,2]
[426091640,1782144641000,-785.0,0.00020939,2]
[426091642,1782144641000,-422.3697271,0.00021,2]
[426091641,1782144641000,-2730.0,0.00020995,2]
[426091643,1782144641000,-1139.0,0.00021,2]
[426091647,1782144641000,-6111.0,0.00021,2]
[426091644,1782144641000,-169.78520518,0.00021,2]
[426091650,1782144641000,-221.0,0.00021,2]
[426091648,1782144641000,-15000.0,0.00021,2]
[426091627,1782144641000,-151.0,0.00020548,2]
[426091638,1782144641000,-8380.22662504,0.00020717,2]
[426091617,1782144641000,-151.0,0.0002,2]
[426091593,1782144641000,-151.0,0.0002,2]
[426091622,1782144641000,-166.15358353,0.0002,2]
[426091594,1782144641000,-500.0,0.0002,2]
[426091602,1782144641000,-500.0,0.0002,2]
[426091597,1782144641000,-500.0,0.0002,2]
[426091646,1782144641000,-15000.0,0.00021,2]
[426091595,1782144641000,-151.0,0.0002,2]
[426091596,1782144641000,-151.0,0.0002,2]
[426091592,1782144641000,-151.0,0.0002,2]
[426091600,1782144641000,-151.0,0.0002,2]
[426091598,1782144641000,-151.0,0.0002,2]
[426091599,1782144641000,-151.0,0.0002,2]
[426091601,1782144641000,-151.0,0.0002,2]
[426091604,1782144641000,-151.0,0.0002,2]
[426091607,1782144641000,-151.0,0.0002,2]
[426091603,1782144641000,-151.0,0.0002,2]
[426091605,1782144641000,-500.0,0.0002,2]
[426091614,1782144641000,-500.0,0.0002,2]
[426091606,1782144641000,-151.0,0.0002,2]
[426091608,1782144641000,-500.0,0.0002,2]
[426091609,1782144641000,-151.0,0.0002,2]
[426091610,1782144641000,-151.0,0.0002,2]
[426091611,1782144641000,-500.0,0.0002,2]
[426091612,1782144641000,-151.0,0.0002,2]
[426091613,1782144641000,-151.0,0.0002,2]
[426091615,1782144641000,-151.0,0.0002,2]
[426091620,1782144641000,-177.0,0.0002,2]
[426091621,1782144641000,-2000.0,0.0002,7]
[426091626,1782144641000,-752.4937536,0.000204,2]
[426091616,1782144641000,-500.0,0.0002,2]
[426091649,1782144641000,-4180.26916124,0.00021,2]
[426091639,1782144641000,-752.4937536,0.000208,2]
[426091661,1782144641000,-1368.605,0.00021168,2]
[426091684,1782144641000,-501.0,0.00021856,3]
[426091683,1782144641000,-760.82,0.0002185,2]
[426091682,1782144641000,-4088.0,0.00021824,5]
[426091687,1782144641000,-744.55644071,0.00021898,2]
[426091689,1782144641000,-1010.43,0.00021918,2]
[426091688,1782144641000,-422.3697271,0.000219,2]
[426091694,1782144641000,-450.0,0.00022,2]
[426091693,1782144641000,-1139.0,0.00022,2]
[426091697,1782144641000,-156.0,0.00022,2]
[426091698,1782144641000,-938.0,0.00022,2]
[426091690,1782144641000,-5000.0,0.00021918,2]
[426091696,1782144641000,-221.0,0.00022,2]
[426091681,1782144641000,-208.0,0.00021699,2]
[426091691,1782144641000,-500.0,0.00021931,2]
[426091700,1782144641000,-512.0,0.00022,2]
[426091703,1782144641000,-204.0,0.00022,2]
[426091701,1782144641000,-2121.76,0.00022,2]
[426091699,1782144641000,-2213.44721922,0.00022,2]
[426091702,1782144641000,-1258.0,0.00022,2]
[426091706,1782144641000,-2000.0,0.000221,2]
[426091704,1782144641000,-177.0,0.00022,2]
[426091705,1782144641000,-150.0,0.00022,2]
[426091708,1782144641000,-151.0,0.00022192,2]
[426091707,1782144641000,-244.96425062,0.0002211,2]
[426091709,1782144641000,-200.0,0.00022192,2]
[426091651,1782144641000,-156.0,0.00021,2]
[426091692,1782144641000,-785.0,0.00021936,2]
[426091685,1782144641000,-35374.6483917,0.00021884,2]
[426091695,1782144641000,-839.0,0.00022,2]
[426091678,1782144641000,-151.0,0.00021644,2]
[426091652,1782144641000,-938.0,0.00021,2]
[426091654,1782144641000,-169.14951849,0.00021,2]
[426091655,1782144641000,-204.0,0.00021,2]
[426091653,1782144641000,-512.0,0.00021,2]
[426091658,1782144641000,-200.0,0.00021096,2]
[426091680,1782144641000,-2080.17592889,0.00021644,2]
[426091657,1782144641000,-151.0,0.00021096,2]
[426091656,1782144641000,-177.0,0.00021,2]
[426091659,1782144641000,-2005.9555727,0.00021096,2]
[426091662,1782144641000,-388.0,0.00021168,2]
[426091668,1782144641000,-785.0,0.00021271,2]
[426091666,1782144641000,-422.3697271,0.000212,2]
[426091667,1782144641000,-501.0,0.00021237,3]
[426091665,1782144641000,-6082.0,0.00021178,2]
[426091660,1782144641000,-1279.283,0.00021168,2]
[426091670,1782144641000,-2339.05,0.00021273,2]
[426091664,1782144641000,-3670.257,0.00021178,2]
[426091677,1782144641000,-1525.49,0.00021615,2]
[426091686,1782144641000,-108193.3972381,0.00021884,2]
[426091676,1782144641000,-785.0,0.00021603,2]
[426091673,1782144641000,-422.3697271,0.000214,2]
[426091675,1782144641000,-422.3697271,0.000216,2]
[426091679,1782144641000,-200.0,0.00021644,2]
[426091672,1782144641000,-500.0,0.00021292,2]
[426091671,1782144641000,-52139.13,0.00021273,2]
[426091669,1782144641000,-1012.1,0.00021273,2]
[426091674,1782144641000,-184.51424214,0.00021594,7]
[426091663,1782144641000,-1229.25,0.00021178,2]
[426091719,1782144642000,-1280.88388877,0.00022289,2]
[426091727,1782144642000,-1651.81367706,0.00022289,2]
[426091726,1782144642000,-1592.87721992,0.00022289,2]
[426091724,1782144642000,-1536.04360648,0.00022289,2]